Workbook

Sheet Bridging Calculator
A6: BRIDGING CALCULATOR - BROKER v5.1 Last updated: December 2025 | H6: Quote
A7: Applicant's Name:
B8: Edit this column ↓ | H8: Total Loan Amount | I8: =E11 -> 2800
A9: Property being purchased | D9: Amount you need to cover all costs | E9: =IF(B10>0, CEILING(Net_Loan_Amt('Bridging Worksheet'!G16, 'Bridging Worksheet'!F13, 'Bridging Worksheet'!C29),10),0) -> 0 | H9: Bridging Term (months) | I9: =B23 -> 12
A10: Purchase Price | B10: 0 | H10: Interest Rate | I10: =B24 -> 0
A11: State | B11: NSW | D11: TOTAL LOAN (Peak Debt) | E11: ='Bridging Worksheet'!F19 -> 2800 | H11: Application Fee | I11: ='Bridging Worksheet'!C25 -> 35
D12: Includes Capped Interest | E12: ='Bridging Worksheet'!F20 -> 100 | H12: LVR | I12: =E13 -> 0
A13: Property to be sold | D13: Peak LVR | E13: ='Bridging Worksheet'!F21 -> 0 | H13: End Debt | I13: =E17 -> 2800
A14: Market Value | B14: 0 | D14: =_xlfn.IFS( AND(E11>4000000, E13>70%), "LVR cannot exceed 70% for loan above $4.0mln - contact your BDM", E11>4000000, "Loan above $4.0mln - contact your BDM", E11>'Bridging Worksheet'!F18,_xlfn.TEXTJOIN(" ",1,"Consider contributing more savings. Peak debt cannot exceed",TEXT('Bridging Worksheet'!F18,"$###,###")), TRUE, "") -> Consider contributing more savings. Peak debt cannot exceed $ | H14: End Debt LVR | I14: =E18 -> 0
A15: Existing mortgage | B15: 0 | D15: Surplus at Settlement | E15: ='Bridging Worksheet'!F29 -> -247.43 | H15: Net Sales Proceeds | I15: =E21 -> 0
A16: State | B16: NSW | H16: Breakdown
A17: Property already sold (COS available)? | B17: No | D17: Minimum End Debt | E17: ='Bridging Worksheet'!F23 -> 2800
D18: End LVR | E18: ='Bridging Worksheet'!F24 -> 0 | H18: Peak Debt | I18: =E11 -> 2800
A19: Contributions | D19: =IF(NOT(OR(E17="No End Debt",E17=0, E18>80%)),_xlfn.TEXTJOIN(" ",1,"Calculate servicing for",TEXT(E17,"$###,###")), "") -> Calculate servicing for $2,800 | H19: Interest Budget (included) | I19: =E12 -> 100
A20: Savings+Deposit paid | B20: 0 | D20: =IF(E18>80%,"End LVR cannot exceed 80%", "") ->  | H20: Refinance | I20: =B15 -> 0
D21: Net Sales Proceeds | E21: ='Bridging Worksheet'!F30 -> 0 | H21: All fees, duties & costs | I21: ='Bridging Worksheet'!C38 -> 2865.03
A22: Loan terms | H22: Stamp duty + Transfer Fee | I22: ='Bridging Worksheet'!C32+'Bridging Worksheet'!C33 -> 175.7
A23: Bridging Period (months) | B23: 12 | D23: DISCLAIMER: the above calculations do not include broker's mandate or Settlement fee, if applicable. | H23: Mortgage Registration Fee | I23: ='Bridging Worksheet'!C31 -> 351.4
A24: Interest Rate | B24: 0 | H24: Title Insurance fee | I24: ='Bridging Worksheet'!C29 -> 247.43
A25: ='Bridging Worksheet'!E12 ->  | H25: Borrower's conveyancer | I25: ='Bridging Worksheet'!C35 -> 1500
A26: The information contained in this calculator is provided by ORDE Financial Pty Limited ACN 634 779 990 Australian Credit Licence 522079 and ORDE Capital Management Limited ACN 636 165 378 Australian Financial Services Licence 523150 Australian Credit Licence 523150 for illustrative purposes only and should not be regarded as a prediction, or as personal advice. Calculations are not forecasts or projections but is a tool that may assist you to make your own projections. The calculator is not intended to be a substitute for professional advice. The information in this calculator does not constitute an offer to lend, or imply the product is suitable for clients. Before acting on this general information, your client must consider its appropriateness having regard to their own objectives, financial situation and need and also seek independent financial, legal and taxation advice. No guarantee, warranty, or representation is given or implied as to the reliability or accuracy of the information use to compile each index or each calculation. ORDE Financial specifically disclaims any liability for any direct, indirect, incidental, consequential, or special damages or for any loss arising out of or in any way connected with the access to, reliance on, or use of this calculator. | H26: Application fee | I26: ='Bridging Worksheet'!C25 -> 35
H27: Lender's legal fees | I27: ='Bridging Worksheet'!C28 -> 555.5
H28: Balance for the purchase | I28: =I18-I19-I20-I21 -> -165.03
H30: =_xlfn.TEXTJOIN(" ", 1, "Figures are based on the sale settling in", TEXT(B23, "##"), "months.") -> Figures are based on the sale settling in 12 months.

Sheet Bridging Worksheet (hidden)
A5: BRIDGING CALCULATOR - BROKER
A6: Applicant's Name: | I6: Quote
C7: Enter data in the cells highlighted in yellow
A8: Existing property you are selling | E8: Loan Details
A9: Existing Property Value | C9: ='Bridging Calculator'!B14 -> 0 | E9: Minimum Bridging Period (months) | F9: =_xlfn.IFS(C12="", "", C12= "Yes", 6, C12="No", 12) -> 12 | I9: Total Loan Amount | J9: =F19 -> 2800
A10: Existing Mortgage | C10: ='Bridging Calculator'!B15 -> 0 | E10: Bridging period (max 12 months) | F10: ='Bridging Calculator'!B23 -> 12 | I10: Term (months) | J10: =F10 -> 12
A11: State | C11: ='Bridging Calculator'!B16 -> NSW | E11: Interest Rate | F11: ='Bridging Calculator'!B24 -> 0 | I11: Interest Rate | J11: =F11 -> 0
A12: Has the property been sold? | C12: ='Bridging Calculator'!B17 -> No | E12: =IF(F10<F9, _xlfn.TEXTJOIN(" ", 1, "Minimum bridging period is", TEXT(F9, "##"), "months"),"") ->  | I12: Application Fee | J12: =B25 -> 0.0125
E13: Approx. loan amount to avoid shortfall at settlement. To reduce - add more savings. | F13: =CEILING(C10+C15-SUM(C18:C19)+ SUM(C25:C28)+SUM(C31:C33)+ SUM(C35:C36),100) -> 2700 | I13: Settlement Fee | J13: =B26 -> 0
A14: Property you are purchasing | I14: LVR | J14: =F21 -> 0
A15: Purchase Property Value | C15: ='Bridging Calculator'!B10 -> 0 | I15: End Debt | J15: =TEXT(IF(AND(NOT(F25=""), NOT(F25=0)),F25,F23), "$ ###,###") -> $ 2,800
A16: Market Value (valuation) | C16: =C15 -> 0 | E16: Required Loan Amount | F16: =MAX('Bridging Calculator'!E9, F13) -> 2700 | G16: =MIN(F13, F16) -> 2700 | I16: End Debt LVR | J16: =IF(AND(NOT(F25=""), NOT(F25=0)),F26,F24) -> 0
A17: State | C17: ='Bridging Calculator'!B11 -> NSW
A18: Deposit Paid | C18: ='Bridging Calculator'!B20 -> 0 | E18: Maximum Peak Debt | F18: =IF(C12 = "Yes", (C9+ MIN(C16,C15))*0.8, C9 * 0.75 + MIN(C16,C15)*0.8) -> 0
A19: Savings to contribute | C19: 0 | E19: Peak Debt (Loan required + Interest) | F19: =CEILING(FV((F11+2%)/12, F10, 0, -F16),100) -> 2800 | I19: Transaction Summary
E20: Interest Budget | F20: =F19-F16 -> 100
A21: Total Security value | C21: =C9+MIN(C16,C15) -> 0 | E21: Peak LVR | F21: =IFERROR(F19/C21, 0) -> 0 | I21: Peak Debt | J21: =F19 -> 2800
I22: Interest Budget | J22: =F20 -> 100
A23: Transaction Costs | E23: Minimum End Debt | F23: =IF((F19-F30)<0, "No End Debt", CEILING(F19-F30, 100)) -> 2800 | I23: Refinance | J23: =C10 -> 0
A24: Lender's & Broker's Fees | E24: LVR on End Debt | F24: =IFERROR(IF(ISNUMBER(F23),F23/C16,0),0) -> 0 | I24: All fees & Costs | J24: =C38 -> 2865.03
A25: Application Fee | B25: 0.0125 | C25: =F19*B25 -> 35 | E25: Requested End Debt | F25: 0 | I25: Balance for the purchase | J25: =J21-J22-J23-J24 -> -165.03
A26: Settlement Fee | B26: 0 | C26: =F19*B26 -> 0 | E26: LVR on requested End Debt | F26: =IF(ISNUMBER(F25),F25/C16,0) -> 
A27: Broker's Mandate | C27: 0 | E27: =_xlfn.IFS(AND(NOT(OR(F23="No End Debt", F23=0)), F25<>"", F25<F23), _xlfn.TEXTJOIN(" ", 1, "Requested End Debt cannot be less than", TEXT(F23, "$###,###")), NOT(OR(F23="No End Debt", F23=0)), _xlfn.TEXTJOIN(" ", 1, "Calculate servicing for", TEXT(IF(AND(F25<>"", F25<>0),F25,F23), "$###,###")) ) -> Requested End Debt cannot be less than $2,800
A28: Lender's Legals | C28: 555.5
A29: Title Insurance Fee | C29: =SUM(Data!X20, Data!X21) -> 247.43 | E29: Surplus/Deficit at settlement | F29: =F16-F13-C29 -> -247.43 | I29: NOTE: Net_Loan_Amt - recursive function, see Menu: Formulas -> Name Manager
A30: Government Fees | E30: Expected Net Sales Proceeds | F30: =C9*(100%-10%)*(100%-2.5%) -> 0
A31: Mortgage Registration Fee | C31: =_xlfn.XLOOKUP(C11, Data!O4:O11, Data!Q4:Q11)+_xlfn.XLOOKUP(C17, Data!O4:O11, Data!Q4:Q11) -> 351.4
A32: Stamp Duty | C32: =VLOOKUP(C17, Data!O4:P11,2,FALSE) -> FALSE | E32: The information contained in this calculator is provided by ORDE Financial Pty Limited ACN 634 779 990 Australian Credit Licence 522079 and ORDE Capital Management Limited ACN 636 165 378 Australian Financial Services Licence 523150 Australian Credit Licence 523150 for illustrative purposes only and should not be regarded as a prediction, or as personal advice. Calculations are not forecasts or projections but is a tool that may assist you to make your own projections. The calculator is not intended to be a substitute for professional advice. The information in this calculator does not constitute an offer to lend, or imply the product is suitable for clients. Before acting on this general information, your client must consider its appropriateness having regard to their own objectives, financial situation and need and also seek independent financial, legal and taxation advice. No guarantee, warranty, or representation is given or implied as to the reliability or accuracy of the information use to compile each index or each calculation. ORDE Financial specifically disclaims any liability for any direct, indirect, incidental, consequential, or special damages or for any loss arising out of or in any way connected with the access to, reliance on, or use of this calculator.
A33: Transfer fee | C33: =_xlfn.IFS(C17="VIC",MIN(3621,ROUND(111.8+(FLOOR(C15,1000)*2.34/1000),0)), C17="NSW",Data!Q5, C17="ACT",479, C17="NT",Data!Q10, C17="Tas",250.21, C17="SA",342+CEILING((C15-50000)/10000,1)*102, C17="QLD",IF(C15<=180000,Data!Q7,Data!Q7+(CEILING(C15,10000)-180000)*44.71/10000), C17="WA",_xlfn.IFS(C15<=120000,226.6,C15<=200000,246.6,C15<=2000000,246.6+(CEILING(C15,100000)-200000)*20/100000,C15>2000000,606.6+CEILING(C15,100000)*20/100000)) -> 175.7
A34: Other Costs
A35: Borrower's Conveyancer | C35: 1500
A36: Other | C36: 0
A38: All fees & Costs | C38: =SUM(C25:C29)+SUM(C31:C33)+SUM(C35:C36) -> 2865.03

Sheet Payout Schedule
A1: Estimated loan balance per month
A3: Net Loan at drawdown: | B3: ='Bridging Calculator'!E9 -> 0
A5: Month | B5: Interest charged | C5: Interest accummulated | D5: Estimated Loan Balance
A6: 1 | B6: =IF(A6<='Bridging Calculator'!$B$23, IPMT('Bridging Calculator'!$B$24/12, A6, 'Bridging Calculator'!$B$23, -$B$3, FV('Bridging Calculator'!$B$24/12,'Bridging Calculator'!$B$23,0, -$B$3) ), 0) -> 0 | C6: =B6 -> 0 | D6: =FV('Bridging Calculator'!B24/12,1,0, -'Bridging Calculator'!E9) -> 0
A7: 2 | B7: =IF(A7<='Bridging Calculator'!$B$23, IPMT('Bridging Calculator'!$B$24/12, A7, 'Bridging Calculator'!$B$23, -$B$3, FV('Bridging Calculator'!$B$24/12,'Bridging Calculator'!$B$23,0, -$B$3) ), 0) -> 0 | C7: =C6+B7 -> 0 | D7: =IF(A7<='Bridging Calculator'!$B$23, FV('Bridging Calculator'!$B$24/12,1,0, -D6),0) -> 0
A8: 3 | B8: =IF(A8<='Bridging Calculator'!$B$23, IPMT('Bridging Calculator'!$B$24/12, A8, 'Bridging Calculator'!$B$23, -$B$3, FV('Bridging Calculator'!$B$24/12,'Bridging Calculator'!$B$23,0, -$B$3) ), 0) -> 0 | C8: =C7+B8 -> 0 | D8: =IF(A8<='Bridging Calculator'!$B$23, FV('Bridging Calculator'!$B$24/12,1,0, -D7),0) -> 0
A9: 4 | B9: =IF(A9<='Bridging Calculator'!$B$23, IPMT('Bridging Calculator'!$B$24/12, A9, 'Bridging Calculator'!$B$23, -$B$3, FV('Bridging Calculator'!$B$24/12,'Bridging Calculator'!$B$23,0, -$B$3) ), 0) -> 0 | C9: 0 | D9: =IF(A9<='Bridging Calculator'!$B$23, FV('Bridging Calculator'!$B$24/12,1,0, -D8),0) -> 0
A10: 5 | B10: =IF(A10<='Bridging Calculator'!$B$23, IPMT('Bridging Calculator'!$B$24/12, A10, 'Bridging Calculator'!$B$23, -$B$3, FV('Bridging Calculator'!$B$24/12,'Bridging Calculator'!$B$23,0, -$B$3) ), 0) -> 0 | C10: 0 | D10: =IF(A10<='Bridging Calculator'!$B$23, FV('Bridging Calculator'!$B$24/12,1,0, -D9),0) -> 0
A11: 6 | B11: =IF(A11<='Bridging Calculator'!$B$23, IPMT('Bridging Calculator'!$B$24/12, A11, 'Bridging Calculator'!$B$23, -$B$3, FV('Bridging Calculator'!$B$24/12,'Bridging Calculator'!$B$23,0, -$B$3) ), 0) -> 0 | C11: 0 | D11: =IF(A11<='Bridging Calculator'!$B$23, FV('Bridging Calculator'!$B$24/12,1,0, -D10),0) -> 0
A12: 7 | B12: =IF(A12<='Bridging Calculator'!$B$23, IPMT('Bridging Calculator'!$B$24/12, A12, 'Bridging Calculator'!$B$23, -$B$3, FV('Bridging Calculator'!$B$24/12,'Bridging Calculator'!$B$23,0, -$B$3) ), 0) -> 0 | C12: 0 | D12: =IF(A12<='Bridging Calculator'!$B$23, FV('Bridging Calculator'!$B$24/12,1,0, -D11),0) -> 0
A13: 8 | B13: =IF(A13<='Bridging Calculator'!$B$23, IPMT('Bridging Calculator'!$B$24/12, A13, 'Bridging Calculator'!$B$23, -$B$3, FV('Bridging Calculator'!$B$24/12,'Bridging Calculator'!$B$23,0, -$B$3) ), 0) -> 0 | C13: 0 | D13: =IF(A13<='Bridging Calculator'!$B$23, FV('Bridging Calculator'!$B$24/12,1,0, -D12),0) -> 0
A14: 9 | B14: =IF(A14<='Bridging Calculator'!$B$23, IPMT('Bridging Calculator'!$B$24/12, A14, 'Bridging Calculator'!$B$23, -$B$3, FV('Bridging Calculator'!$B$24/12,'Bridging Calculator'!$B$23,0, -$B$3) ), 0) -> 0 | C14: 0 | D14: =IF(A14<='Bridging Calculator'!$B$23, FV('Bridging Calculator'!$B$24/12,1,0, -D13),0) -> 0
A15: 10 | B15: =IF(A15<='Bridging Calculator'!$B$23, IPMT('Bridging Calculator'!$B$24/12, A15, 'Bridging Calculator'!$B$23, -$B$3, FV('Bridging Calculator'!$B$24/12,'Bridging Calculator'!$B$23,0, -$B$3) ), 0) -> 0 | C15: 0 | D15: =IF(A15<='Bridging Calculator'!$B$23, FV('Bridging Calculator'!$B$24/12,1,0, -D14),0) -> 0
A16: 11 | B16: =IF(A16<='Bridging Calculator'!$B$23, IPMT('Bridging Calculator'!$B$24/12, A16, 'Bridging Calculator'!$B$23, -$B$3, FV('Bridging Calculator'!$B$24/12,'Bridging Calculator'!$B$23,0, -$B$3) ), 0) -> 0 | C16: 0 | D16: =IF(A16<='Bridging Calculator'!$B$23, FV('Bridging Calculator'!$B$24/12,1,0, -D15),0) -> 0
A17: 12 | B17: =IF(A17<='Bridging Calculator'!$B$23, IPMT('Bridging Calculator'!$B$24/12, A17, 'Bridging Calculator'!$B$23, -$B$3, FV('Bridging Calculator'!$B$24/12,'Bridging Calculator'!$B$23,0, -$B$3) ), 0) -> 0 | C17: 0 | D17: =IF(A17<='Bridging Calculator'!$B$23, FV('Bridging Calculator'!$B$24/12,1,0, -D16),0) -> 0
A19: NOTE: Above figures are based on the quoted rate and are approximate. The interest budget is calculated on the assessment rate.

Sheet Data (hidden)
C3: Residential | D3: ACT | E3: NSW | F3: NT | G3: QLD | H3: SA | I3: TAS | J3: VIC | K3: WA | L3: BASE | O3: State | P3: Stamp Duty | Q3: Mortgage Registration
C4: 600000 | D4: =ROUNDUP(ROUNDUP($L$4*$D$26,2)*D27,2) -> 132 | E4: =ROUNDUP(ROUNDUP($L$4*$D$26, 2)*E27, 2) -> 143.88 | F4: =ROUNDUP(ROUNDUP($L$4*$D$26,2)*F27,2) -> 145.2 | G4: 143.88 | H4: 146.52 | I4: 145.2 | J4: 145.2 | K4: 145.2 | L4: 120 | O4: VIC | P4: =ROUND(IF('Bridging Worksheet'!C15>2000000, ('Bridging Worksheet'!C15-2000000)*0.065+110000, IF('Bridging Worksheet'!C15>960000,'Bridging Worksheet'!C15*0.055,IF('Bridging Worksheet'!C15>130001,2870 + ('Bridging Worksheet'!C15-130000)*0.06, IF('Bridging Worksheet'!C15> 25001,350 + ('Bridging Worksheet'!C15-25000)*0.024, 'Bridging Worksheet'!C15*0.014)))),) -> 0 | Q4: 135.8
C5: 1000000 | D5: =ROUNDUP(ROUNDUP($L$5*$D$26,2)*D27,2) -> 237.6 | E5: =ROUNDUP(ROUNDUP($L$5*$D$26, 2)*E27, 2) -> 258.99 | F5: =ROUNDUP(ROUNDUP($L$5*$D$26,2)*F27,2) -> 261.36 | G5: 258.99 | H5: 263.74 | I5: 261.36 | J5: 261.36 | K5: 261.36 | L5: 216 | O5: NSW | P5: =IF('Bridging Worksheet'!C15>3721000,CEILING(('Bridging Worksheet'!C15-3721000)/100,1)*7+186667, IF('Bridging Worksheet'!C15>1240000,CEILING(('Bridging Worksheet'!C15-1240000)/100,1)*5.5+50212,IF('Bridging Worksheet'!C15>372000,CEILING(('Bridging Worksheet'!C15-372000)/100,1)*4.5+11152, IF('Bridging Worksheet'!C15>99000,CEILING(('Bridging Worksheet'!C15-99000)/100,1)*3.5+1597)))) -> FALSE | Q5: 175.7
C6: 2000000 | D6: =ROUNDUP(ROUNDUP($L$6*$D$26,2)*D27,2) -> 475.2 | E6: =ROUNDUP(ROUNDUP($L$6*$D$26, 2)*E27,2) -> 517.97 | F6: =ROUNDUP(ROUNDUP($L$6*$D$26,2)*F27,2) -> 522.72 | G6: 517.97 | H6: 527.48 | I6: 522.72 | J6: 522.72 | K6: 522.72 | L6: 432 | O6: SA | P6: =IF('Bridging Worksheet'!C15 >= 500000, 21330 + 0.055 * ('Bridging Worksheet'!C15 - 500000), IF('Bridging Worksheet'!C15 >= 300000, 11330 + 0.05 * ('Bridging Worksheet'!C15 - 300000), IF('Bridging Worksheet'!C15 >= 250000, 8955 + 0.0475 * ('Bridging Worksheet'!C15 - 250000), IF('Bridging Worksheet'!C15 >= 200000, 6830 + 0.0425 * ('Bridging Worksheet'!C15 - 200000), IF('Bridging Worksheet'!C15 >= 100000, 2830 + 0.04 * ('Bridging Worksheet'!C15 - 100000), IF('Bridging Worksheet'!C15 >= 50000, 1080 + 0.035 * ('Bridging Worksheet'!C15 - 50000), IF('Bridging Worksheet'!C15 >= 30000, 480 + 0.03 * ('Bridging Worksheet'!C15 - 30000), IF('Bridging Worksheet'!C15>= 12000, 120 + 0.02 * ('Bridging Worksheet'!C15 - 12000), 0.01 * 'Bridging Worksheet'!C15) ))))))) -> 0 | Q6: 198
C7: 3000000 | D7: =ROUNDUP(ROUNDUP($L$7*$D$26, 2)*D27,2) -> 712.8 | E7: =ROUNDUP(ROUNDUP($L$7*$D$26, 2)*E27,2) -> 776.96 | F7: =ROUNDUP(ROUNDUP($L$7*$D$26,2)*F27,2) -> 784.08 | G7: 776.96 | H7: 791.21 | I7: 784.08 | J7: 784.08 | K7: 784.08 | L7: 648 | O7: QLD | P7: =ROUND( IF('Bridging Worksheet'!C15 > 1000000, 38025 + 0.0575 * ('Bridging Worksheet'!C15 - 1000000), IF('Bridging Worksheet'!C15 > 540000, 17325 + 0.045 * ('Bridging Worksheet'!C15 - 540000), IF('Bridging Worksheet'!C15 > 75000, 1050 + 0.035 * ('Bridging Worksheet'!C15 - 75000), IF('Bridging Worksheet'!C15 > 5000, 0.015 * ('Bridging Worksheet'!C15 - 5000), 0)))),) -> 0 | Q7: 238.14
C8: 4000000 | D8: =ROUNDUP(ROUNDUP($L$8*$D$26, 2)*D27, 2) -> 950.4 | E8: =ROUNDUP(ROUNDUP($L$8*$D$26,2)*E27,2) -> 1035.94 | F8: 1045.44 | G8: 1035.94 | H8: 1054.95 | I8: 1045.44 | J8: 1045.44 | K8: 1045.44 | L8: 864 | O8: WA | P8: =IF('Bridging Worksheet'!C15> 725000, 28453 + 0.0515 * (CEILING('Bridging Worksheet'!C15,100) - 725000), IF('Bridging Worksheet'!C15 > 360000, 11115 + 0.0475 * (CEILING('Bridging Worksheet'!C15,100) - 360000), IF('Bridging Worksheet'!C15> 150000, 3135 + 0.038 * (CEILING('Bridging Worksheet'!C15,100) - 150000), IF('Bridging Worksheet'!C15 > 120000, 2280 + 0.0285 * (CEILING('Bridging Worksheet'!C15,100) - 120000), 0.019 * CEILING('Bridging Worksheet'!C15,100)) ))) -> 0 | Q8: 216.6
C9: 4000001 | D9: =ROUND($D$26*D27, 2) -> 1.1 | E9: =ROUND($D$26*E27, 2) -> 1.2 | F9: 1.21 | G9: 1.2 | H9: 1.22 | I9: 1.21 | J9: 1.21 | K9: 1.21 | O9: ACT | P9: =IF('Bridging Worksheet'!C15 >= 1455000, 0 + 0.0454 * 'Bridging Worksheet'!C15, IF('Bridging Worksheet'!C15 >= 1000001, 36950 + 0.064 * ('Bridging Worksheet'!C15- 1000000), IF('Bridging Worksheet'!C15 >= 750001, 22200 + 0.059 * ('Bridging Worksheet'!C15 - 750000), IF('Bridging Worksheet'!C15 >= 500001, 11400 + 0.0432 * ('Bridging Worksheet'!C15 - 500000), IF('Bridging Worksheet'!C15 >= 300001, 4600 + 0.034 * ('Bridging Worksheet'!C15 - 300000), IF('Bridging Worksheet'!C15 >= 200001, 2400 + 0.022 * ('Bridging Worksheet'!C15 - 200000), MAX(0.012*'Bridging Worksheet'!C15,20) )))))) -> 20 | Q9: 178
B10: additional security same state | D10: =$L$10*$D$26*D27 -> 95 | E10: =$L$10*$D$26*E27 -> 103.55 | F10: 104.5 | G10: 103.55 | H10: 105.45 | I10: 104.5 | J10: 104.5 | K10: 104.5 | L10: 86.36363636 | O10: NT | P10: =MROUND( IF('Bridging Worksheet'!C15 > 3000000, 0.0545 * 'Bridging Worksheet'!C15, IF('Bridging Worksheet'!C15> 525000, 0.0495 * 'Bridging Worksheet'!C15, 0.06571441 * ((('Bridging Worksheet'!C15/1000)^2)) + 15 * ('Bridging Worksheet'!C15/1000))),0.05) -> 0 | Q10: 176
O11: TAS | P11: =IF('Bridging Worksheet'!C15> 725000, 27810 + 0.045 * (CEILING('Bridging Worksheet'!C15,100) - 725000), IF('Bridging Worksheet'!C15 > 375000, 12935 + 0.0425 * (CEILING('Bridging Worksheet'!C15,100) - 375000), IF('Bridging Worksheet'!C15 > 200000, 5935 + 0.04 * (CEILING('Bridging Worksheet'!C15,100) - 200000), IF('Bridging Worksheet'!C15 > 75000, 1560 + 0.035 * (CEILING('Bridging Worksheet'!C15,100) - 75000), IF('Bridging Worksheet'!C15 > 25000, 435 + 0.0225 * (CEILING('Bridging Worksheet'!C15,100) - 25000), IF('Bridging Worksheet'!C15 > 3000, 50 + 0.0175 * (CEILING('Bridging Worksheet'!C15,100) - 3000), 50) ))))) -> 50 | Q11: 163.3
Q12: Owner Occupied
O13: Residential | Q13: Investment | R13: Yes
O14: Commercial | Q14: Purchase | R14: No
O15: Yes | Q15: Refinance
C16: Commercial | D16: ACT | E16: NSW | F16: NT | G16: QLD | H16: SA | I16: TAS | J16: VIC | K16: WA | O16: No | Q16: Equity Release
A17: 1 | B17: 1 | C17: 500000 | D17: =ROUNDUP(ROUNDUP($D$23*$D$26,2)*D27,2) -> 330 | E17: 359.7 | F17: 363 | G17: 359.7 | H17: 366.3 | I17: 363 | J17: 363 | K17: 363
A18: 2 | B18: 500001 | C18: 500,001 - 999,999,999 | D18: =ROUNDUP(ROUNDUP((SUM('Bridging Worksheet'!$N$26, -$C$17)/1000*0.6+$D$23)*D27,2)*$D$26,2) -> 0 | E18: =ROUNDUP(ROUNDUP((SUM('Bridging Worksheet'!$N$26, -$C$17)/1000*0.6+$D$23)*E27,2)*$D$26,2) -> 0 | F18: =ROUNDUP(ROUNDUP((SUM('Bridging Worksheet'!$N$26, -$C$17)/1000*0.6+$D$23)*F27,2)*$D$26,2) -> 0 | G18: =ROUNDUP(ROUNDUP((SUM('Bridging Worksheet'!$N$26, -$C$17)/1000*0.6+$D$23)*G27,2)*$D$26,2) -> 0 | H18: =ROUNDUP(ROUNDUP((SUM('Bridging Worksheet'!$N$26, -$C$17)/1000*0.6+$D$23)*H27,2)*$D$26,2) -> 0 | I18: =ROUNDUP(ROUNDUP((SUM('Bridging Worksheet'!$N$26, -$C$17)/1000*0.6+$D$23)*I27,2)*$D$26,2) -> 0 | J18: =ROUNDUP(ROUNDUP((SUM('Bridging Worksheet'!$N$26, -$C$17)/1000*0.6+$D$23)*J27,2)*$D$26,2) -> 0 | K18: =ROUNDUP(ROUNDUP((SUM('Bridging Worksheet'!$N$26, -$C$17)/1000*0.6+$D$23)*K27,2)*$D$26,2) -> 0
U19: Title Insurance
U20: ='Bridging Worksheet'!C11 -> NSW | V20: =_xlfn.UNIQUE(_xlfn._xlws.FILTER(U20:U21, U20:U21<>"", "")) -> NSW | W20: =COUNTIF(U20:U21,_xlfn.UNIQUE(_xlfn._xlws.FILTER(U20:U21, U20:U21<>0))) -> 2 | X20: =IF('Bridging Worksheet'!F19=0, 0, IFERROR(IF('Bridging Worksheet'!F19<=4000000, _xlfn.XLOOKUP('Bridging Worksheet'!F19,$C$4:$C$9,_xlfn.XLOOKUP(V20,$D$3:$K$3,$D$4:$K$9,,,),,1,), ROUNDUP(('Bridging Worksheet'!F19/1000)*0.5*_xlfn.XLOOKUP(V20,$D$3:$K$3,$D$9:$K$9,,,),2))+IF((W20-1)<0,0,(_xlfn.XLOOKUP(V20,$D$3:$K$3,$D$10:$K$10,,,)*(W20-1))),0)) -> 247.43
U21: ='Bridging Worksheet'!C17 -> NSW | X21: =IF('Bridging Worksheet'!F19=0, 0, IFERROR(IF('Bridging Worksheet'!F19<=4000000, _xlfn.XLOOKUP('Bridging Worksheet'!F19,$C$4:$C$9,_xlfn.XLOOKUP(V21,$D$3:$K$3,$D$4:$K$9,,,),,1,), ROUNDUP(('Bridging Worksheet'!F19/1000)*0.5*_xlfn.XLOOKUP(V21,$D$3:$K$3,$D$9:$K$9,,,),2))+IF((W21-1)<0,0,(_xlfn.XLOOKUP(V21,$D$3:$K$3,$D$10:$K$10,,,)*(W21-1))),0)) -> 0
C23: BASE RATE | D23: 300
C26: GST | D26: 1.1 | M26: Yes
C27: Stamp duty | D27: 1 | E27: 1.09 | F27: 1.1 | G27: 1.09 | H27: 1.11 | I27: 1.1 | J27: 1.1 | K27: 1.1 | M27: No
A69: WA | B69: RESI | J69: Commecial
B70: DUTIABLE VALUE | D70: DUTY THRESHOLDS | J70: DUTIABLE VALUE | M70: DUTY THRESHOLDS
B71: $0 – $120,000 | D71: $1.90 per $100 or part thereof | J71: $0 – $80,000 | M71: $1.90 per $100 or part thereof
B72: $120,001 – $150,000 | D72: $2,280 + $2.85 per $100 or part thereof above $120,000 | J72: $80,001 - $100,000 | M72: $1,520 + $2.85 per $100 or part thereof above $80,000
B73: $150,001 – $360,000 | D73: $ 3,135 + $3.80 per $100 or part thereof above $150,000 | J73: $100,001 – $250,000 | M73: $2,090 + $3.80 per $100 or part thereof above $100,000
B74: $360,001 – $725,000 | D74: $11,115 + $4.75 per $100 or part thereof above $360,000 | J74: $250,001 – $500,000 | M74: $7,790 + $4.75 per $100 or part thereof above $250,000
B75: $725,001 and upwards | D75: $28,453 + $5.15 per $100 or part thereof above $725,000 | J75: $500,001 and upwards | M75: $19,665 + $5.15 per $100 or part thereof above $500,000
